fUST/lending_fUST_20250919
["ID","MTS","AMOUNT","RATE_DAILY","PERIOD"]
[386071728,1758211338035,1217.38283505,0.000199,2]
[386071729,1758211338158,1217.38283488,0.00021149,2]
[386071730,1758211338260,1217.38283488,0.00022398,2]
[386071731,1758211342916,759.3735472,0.00021962,2]
[386071739,1758211522885,1095.64455145,0.000199,2]
[386071740,1758211523012,1095.64455139,0.00021149,2]
[386071741,1758211523123,1095.64455139,0.00022398,2]
[386071747,1758211680767,169.7799347,0.0002216,2]
[386071748,1758211705828,1040.18920938,0.000199,2]
[386071749,1758211705945,1040.18920928,0.00021149,2]
[386071750,1758211709513,1040.18920928,0.00022398,2]
[386071753,1758211821903,154.0,0.00024,120]
[386071754,1758211823295,154.0,0.000269,120]
[386071755,1758211829900,190.0,0.00022973,120]
[386071756,1758211831244,190.0,0.00024122,120]
[386071928,1758211833456,190.0,0.00025328,120]
[386071996,1758211834819,190.0,0.00026594,120]
[386072007,1758211837990,-300.0,0.00022849,2]
[386072008,1758211837999,-300.0,0.00022849,2]
[386072009,1758211838116,-1200.0,0.00022849,2]
[386072010,1758211838127,-351.19783844,0.00022849,2]
[386072011,1758211838139,-128.80216156,0.00022849,2]
[386072012,1758211838148,-484.77714877,0.00022849,3]
[386072013,1758211838157,-480.0,0.00022849,3]
[386072014,1758211838166,-335.36431836,0.00022849,2]
[386072015,1758211838176,-500.0,0.00022849,2]
[386072016,1758211838185,-500.0,0.00022849,2]
[386072017,1758211838195,-500.0,0.00022849,2]
[386072018,1758211838204,-500.0,0.00022849,2]
[386072019,1758211838213,-500.0,0.00022849,2]
[386072020,1758211838223,-500.0,0.00022849,2]
[386072021,1758211838232,-500.0,0.00022849,2]
[386072022,1758211838242,-623.83463469,0.00022849,2]
[386072023,1758211838252,-500.0,0.00022849,2]
[386072024,1758211838261,-500.0,0.00022849,2]
[386072025,1758211838271,-454.33338402,0.00022849,2]
[386072026,1758211838280,-500.0,0.00022849,2]
[386072027,1758211838290,-500.0,0.00022849,2]
[386072028,1758211838300,-500.0,0.00022849,2]
[386072029,1758211838309,-500.0,0.00022849,2]
[386072030,1758211838318,-500.0,0.00022849,2]
[386072031,1758211838328,-500.0,0.00022849,2]
[386072032,1758211838338,-476.92108957,0.00022849,2]
[386072033,1758211838347,-294.50171395,0.00022849,2]
[386072034,1758211838356,-500.0,0.00022849,2]
[386072035,1758211838366,-500.0,0.00022849,2]
[386072036,1758211838375,-500.0,0.00022849,2]
[386072037,1758211838384,-500.0,0.00022849,2]
[386072038,1758211838393,-500.0,0.00022849,2]
[386072039,1758211838402,-500.0,0.00022849,2]
[386072040,1758211838412,-500.0,0.00022849,2]
[386072041,1758211838421,-500.0,0.00022849,2]
[386072042,1758211838431,-500.0,0.00022849,2]
[386072043,1758211838440,-500.0,0.00022849,2]
[386072044,1758211838449,-500.0,0.00022849,2]
[386072045,1758211838459,-500.0,0.00022849,2]
[386072046,1758211838468,-500.0,0.00022849,2]
[386072047,1758211838478,-500.0,0.00022849,2]
[386072048,1758211838488,-500.0,0.00022849,2]
[386072049,1758211838498,-500.0,0.00022849,2]
[386072050,1758211838508,-500.0,0.00022849,2]
[386072051,1758211838518,-500.0,0.00022849,2]
[386072052,1758211838527,-500.0,0.00022849,2]
[386072053,1758211838536,-500.0,0.00022849,2]
[386072054,1758211838546,-480.0,0.0002285,3]
[386072055,1758211838556,-480.0,0.0002285,3]
[386072056,1758211838567,-480.0,0.0002285,3]
[386072057,1758211838576,-480.0,0.0002285,3]
[386072058,1758211838587,-480.0,0.0002285,3]
[386072059,1758211838597,-480.0,0.0002285,3]
[386072060,1758211838607,-480.0,0.0002285,3]
[386072061,1758211838616,-480.0,0.0002285,3]
[386072062,1758211838626,-459.97337017,0.0002285,3]
[386072063,1758211838636,-480.0,0.0002285,3]
[386072064,1758211838645,-480.0,0.0002285,3]
[386072065,1758211838655,-480.0,0.0002285,3]
[386072066,1758211838664,-322.15668715,0.0002285,3]
[386072067,1758211838674,-480.0,0.0002285,3]
[386072068,1758211838684,-554.96649433,0.0002285,3]
[386072069,1758211838694,-480.0,0.0002285,3]
[386072070,1758211838703,-480.0,0.0002285,3]
[386072071,1758211838713,-480.0,0.0002285,3]
[386072072,1758211838723,-480.0,0.0002285,3]
[386072073,1758211838733,-480.0,0.0002285,3]
[386072074,1758211838744,-480.0,0.0002285,3]
[386072075,1758211838754,-480.0,0.0002285,3]
[386072076,1758211838764,-480.0,0.0002285,3]
[386072077,1758211838774,-480.0,0.0002285,3]
[386072078,1758211838783,-480.0,0.0002285,3]
[386072079,1758211838792,-480.0,0.0002285,3]
[386072080,1758211838802,-541.13,0.0002285,3]
[386072081,1758211838812,-480.0,0.0002285,3]
[386072082,1758211838822,-480.0,0.0002285,3]
[386072083,1758211838833,-480.0,0.0002285,3]
[386072084,1758211838843,-480.0,0.0002285,3]
[386072085,1758211838852,-480.0,0.0002285,3]
[386072086,1758211838863,-42997.39752796,0.0002285,2]
[386072087,1758211838872,-500.0,0.00022851,3]
[386072088,1758211838887,-480.0,0.00022851,3]
[386072089,1758211838896,-480.0,0.00022851,3]
[386072090,1758211838906,-480.0,0.00022851,3]
[386072091,1758211838916,-480.0,0.00022851,3]
[386072092,1758211838926,-480.0,0.00022851,3]
[386072093,1758211838937,-480.0,0.00022851,3]
[386072094,1758211838947,-488.91484129,0.00022851,3]
[386072095,1758211838957,-480.0,0.00022851,3]
[386072096,1758211838968,-482.02641831,0.00022851,3]
[386072097,1758211838977,-481.60753857,0.00022851,3]
[386072098,1758211838987,-480.0,0.00022851,3]
[386072099,1758211838996,-482.01871818,0.00022851,3]
[386072100,1758211839006,-482.41099886,0.00022851,3]
[386072101,1758211839015,-482.83728737,0.00022851,3]
[386072102,1758211839025,-483.46813856,0.00022851,3]
[386072103,1758211839034,-2000.0,0.00022851,6]
[386072104,1758211839045,-2000.0,0.00022851,6]
[386072105,1758211839055,-2000.0,0.00022851,6]
[386072106,1758211839065,-480.0,0.00022851,3]
[386072107,1758211839075,-480.0,0.00022851,3]
[386072108,1758211839087,-480.0,0.00022851,3]
[386072109,1758211839096,-480.0,0.00022851,3]
[386072110,1758211839105,-480.0,0.00022851,3]
[386072111,1758211839115,-482.50641503,0.00022851,3]
[386072112,1758211839124,-480.0,0.00022851,3]
[386072113,1758211839133,-480.0,0.00022851,3]
[386072114,1758211839142,-480.0,0.00022851,3]
[386072115,1758211839151,-485.38828651,0.00022851,3]
[386072116,1758211839161,-480.0,0.00022851,3]
[386072117,1758211839170,-480.0,0.00022851,3]
[386072118,1758211839179,-480.0,0.00022851,3]
[386072119,1758211839189,-480.0,0.00022851,3]
[386072120,1758211839199,-480.0,0.00022851,3]
[386072121,1758211839209,-480.0,0.00022851,3]
[386072122,1758211839218,-480.0,0.00022851,3]
[386072123,1758211839227,-566.5292897,0.00022851,3]
[386072124,1758211839236,-480.0,0.00022851,3]
[386072125,1758211839246,-480.0,0.00022851,3]
[386072126,1758211839255,-306.22,0.00022851,3]
[386072127,1758211839265,-480.0,0.00022851,3]
[386072128,1758211839274,-480.0,0.00022851,3]
[386072129,1758211839283,-480.0,0.00022851,3]
[386072130,1758211839293,-480.0,0.00022851,3]
[386072131,1758211839303,-500.0,0.00022851,3]
[386072132,1758211839312,-151.0,0.00022851,3]
[386072133,1758211839321,-365.79836804,0.00022851,3]
[386072134,1758211839333,-151.0,0.00022851,3]
[386072135,1758211839343,-500.0,0.00022851,3]
[386072136,1758211839352,-151.0,0.00022851,2]
[386072137,1758211839362,-157.75316819,0.00022851,3]
[386072138,1758211839371,-500.0,0.00022851,3]
[386072139,1758211839381,-151.0,0.00022851,3]
[386072140,1758211839391,-480.0,0.00022851,3]
[386072141,1758211839401,-151.0,0.00022851,3]
[386072142,1758211839411,-151.29211184,0.00022851,3]
[386072143,1758211839421,-151.30050291,0.00022851,3]
[386072144,1758211839430,-151.41636184,0.00022851,3]
[386072145,1758211839440,-500.0,0.00022852,3]
[386072146,1758211839450,-222.13784159,0.00022852,3]
[386072147,1758211839459,-500.0,0.000229,2]
[386072148,1758211839469,-278.2729578,0.00022992,2]
[386072149,1758211839478,-217.95274215,0.00023,3]
[386072150,1758211839488,-286.37225579,0.00023023,2]
[386072151,1758211839497,-477.03722336,0.00023023,2]
[386072152,1758211839507,-1261.4003785,0.00023025,2]
[386072153,1758211839516,-480.0,0.00023123,2]
[386072154,1758211839526,-480.0,0.00023124,3]
[386072155,1758211839536,-486.64863469,0.00023124,3]
[386072156,1758211839546,-480.0,0.00023124,3]
[386072157,1758211839555,-158.40613644,0.00023124,3]
[386072158,1758211839564,-480.0,0.00023124,3]
[386072159,1758211839574,-481.34,0.00023124,3]
[386072160,1758211839585,-480.0,0.00023124,3]
[386072161,1758211839595,-480.0,0.00023124,3]
[386072162,1758211839604,-480.0,0.00023124,3]
[386072163,1758211839614,-480.0,0.00023124,3]
[386072164,1758211839623,-480.0,0.00023124,3]
[386072165,1758211839633,-480.0,0.00023124,3]
[386072166,1758211839642,-480.0,0.00023124,3]
[386072167,1758211839651,-483.61962064,0.00023124,3]
[386072168,1758211839662,-481.86466484,0.00023124,3]
[386072169,1758211839671,-581.37333433,0.00023124,3]
[386072170,1758211839680,-480.0,0.00023124,3]
[386072171,1758211839690,-480.0,0.00023124,3]
[386072172,1758211839699,-188.73052488,0.00023124,3]
[386072173,1758211839709,-480.0,0.00023124,3]
[386072174,1758211839718,-480.0,0.00023124,3]
[386072175,1758211839727,-480.0,0.00023124,3]
[386072176,1758211839737,-482.32036106,0.00023124,3]
[386072177,1758211839747,-480.0,0.00023124,3]
[386072178,1758211839757,-486.65576839,0.00023124,3]
[386072179,1758211839766,-480.0,0.00023124,3]
[386072180,1758211839775,-480.0,0.00023124,3]
[386072181,1758211839784,-258.47653269,0.00023124,3]
[386072182,1758211839794,-480.0,0.00023124,3]
[386072183,1758211839804,-480.0,0.00023124,3]
[386072184,1758211839813,-480.0,0.00023124,3]
[386072185,1758211839823,-480.0,0.00023124,3]
[386072186,1758211839834,-480.0,0.00023124,3]
[386072187,1758211839844,-480.0,0.00023124,3]
[386072188,1758211839854,-480.0,0.00023124,3]
[386072189,1758211839863,-480.0,0.00023124,3]
[386072190,1758211839873,-480.0,0.00023124,3]
[386072191,1758211839884,-480.0,0.00023124,3]
[386072192,1758211839894,-480.0,0.00023124,3]
[386072193,1758211839904,-480.0,0.00023124,3]
[386072194,1758211839913,-492.71258649,0.00023124,3]
[386072195,1758211839923,-488.27166175,0.00023124,3]
[386072196,1758211839932,-480.0,0.00023124,3]
[386072197,1758211839941,-480.0,0.00023124,3]
[386072198,1758211839950,-480.0,0.00023124,3]
[386072199,1758211839960,-480.0,0.00023124,3]
[386072200,1758211839971,-474.64563324,0.00023124,3]
[386072201,1758211839980,-480.0,0.00023124,3]
[386072202,1758211839990,-485.45,0.00023124,3]
[386072203,1758211839999,-480.0,0.00023124,3]
[386072204,1758211840008,-481.37315015,0.00023124,3]
[386072205,1758211840018,-480.0,0.00023124,3]
[386072206,1758211840027,-480.0,0.00023124,3]
[386072207,1758211840037,-480.0,0.00023124,3]
[386072208,1758211840046,-480.0,0.00023124,3]
[386072209,1758211840056,-481.62184684,0.00023124,3]
[386072210,1758211840065,-480.0,0.00023124,3]
[386072211,1758211840075,-480.0,0.00023124,3]
[386072212,1758211840084,-480.0,0.00023124,3]
[386072213,1758211840093,-480.0,0.00023124,3]
[386072214,1758211840103,-482.02245497,0.00023124,3]
[386072215,1758211840112,-498.25511608,0.00023124,3]
[386072216,1758211840122,-480.0,0.00023124,3]
[386072217,1758211840131,-480.0,0.00023124,3]
[386072218,1758211840140,-480.0,0.00023124,3]
[386072219,1758211840149,-480.0,0.00023124,3]
[386072220,1758211840158,-480.0,0.00023124,3]
[386072221,1758211840167,-480.0,0.00023124,3]
[386072222,1758211840177,-480.0,0.00023124,3]
[386072223,1758211840187,-482.64074367,0.00023124,3]
[386072224,1758211840196,-371.65846279,0.00023124,3]
[386072225,1758211840205,-489.74537352,0.00023124,3]
[386072226,1758211840215,-480.0,0.00023124,3]
[386072227,1758211840224,-480.0,0.00023124,3]
[386072228,1758211840233,-480.0,0.00023124,3]
[386072229,1758211840243,-480.0,0.00023124,3]
[386072230,1758211840252,-480.0,0.00023124,3]
[386072231,1758211840261,-480.0,0.00023124,3]
[386072232,1758211840271,-480.0,0.00023124,3]
[386072233,1758211840280,-480.0,0.00023124,3]
[386072234,1758211840290,-480.0,0.00023124,3]
[386072235,1758211840299,-383.09381774,0.00023124,3]
[386072236,1758211840309,-480.0,0.00023124,3]
[386072237,1758211840318,-374.06570471,0.00023124,3]
[386072238,1758211840328,-480.0,0.00023124,3]
[386072239,1758211840338,-480.0,0.00023124,3]
[386072240,1758211840348,-480.0,0.00023124,3]
[386072241,1758211840357,-480.0,0.00023124,3]
[386072242,1758211840367,-480.0,0.00023124,3]
[386072243,1758211840376,-480.0,0.00023124,3]
[386072244,1758211840386,-480.0,0.00023124,3]
[386072245,1758211840395,-150.99,0.00023124,3]
[386072246,1758211840404,-480.0,0.00023124,3]
[386072247,1758211840414,-480.0,0.00023124,3]
[386072248,1758211840423,-480.0,0.00023124,3]
[386072249,1758211840433,-480.0,0.00023124,3]
[386072250,1758211840442,-265.97677009,0.00023124,3]
[386072251,1758211840452,-480.0,0.00023124,3]
[386072252,1758211840461,-480.0,0.00023124,3]
[386072253,1758211840471,-480.0,0.00023124,3]
[386072254,1758211840480,-480.0,0.00023124,3]
[386072255,1758211840489,-480.0,0.00023124,3]
[386072256,1758211840499,-480.0,0.00023124,3]
[386072257,1758211840508,-480.0,0.00023124,3]
[386072258,1758211840517,-480.0,0.00023124,3]
[386072259,1758211840526,-480.0,0.00023124,3]
[386072260,1758211840535,-480.0,0.00023124,3]
[386072261,1758211840544,-480.0,0.00023124,3]
[386072262,1758211840635,-480.0,0.00023124,3]
[386072263,1758211840646,-480.0,0.00023124,3]
[386072264,1758211840655,-480.0,0.00023124,3]
[386072265,1758211840665,-480.0,0.00023124,3]
[386072266,1758211840675,-481.53911123,0.00023124,3]
[386072267,1758211840684,-480.0,0.00023124,3]
[386072268,1758211840694,-480.0,0.00023124,3]
[386072269,1758211840703,-480.0,0.00023124,3]
[386072270,1758211840712,-480.0,0.00023124,3]
[386072271,1758211840723,-480.0,0.00023124,3]
[386072272,1758211840732,-480.0,0.00023124,3]
[386072273,1758211840741,-159.65174092,0.00023124,3]
[386072274,1758211840751,-458.53,0.00023124,3]
[386072275,1758211840761,-1178.12,0.00023124,3]
[386072276,1758211840771,-480.0,0.00023124,3]
[386072277,1758211840780,-480.0,0.00023124,3]
[386072278,1758211840789,-480.0,0.00023124,3]
[386072279,1758211840799,-485.9959105,0.00023124,3]
[386072280,1758211840808,-541.13,0.00023124,3]
[386072281,1758211840818,-492.47790996,0.00023124,3]
[386072282,1758211840827,-480.0,0.00023124,3]
[386072283,1758211840840,-480.0,0.00023124,3]
[386072284,1758211840850,-484.2803269,0.00023124,3]
[386072285,1758211840860,-480.0,0.00023124,3]
[386072286,1758211840869,-480.0,0.00023124,3]
[386072287,1758211840879,-480.0,0.00023124,3]
[386072288,1758211840891,-480.0,0.00023124,3]
[386072289,1758211840900,-480.0,0.00023124,3]
[386072290,1758211840910,-480.0,0.00023124,3]
[386072291,1758211840920,-480.0,0.00023124,3]
[386072292,1758211840929,-480.0,0.00023124,3]
[386072293,1758211840938,-500.0,0.00023125,3]
[386072294,1758211840947,-500.0,0.00023125,3]
[386072295,1758211840958,-151.0,0.00023125,3]
[386072296,1758211840968,-278.29242393,0.00023125,3]
[386072297,1758211840977,-507.64689878,0.00023125,3]
[386072298,1758211840986,-500.0,0.00023125,3]
[386072299,1758211840996,-151.0,0.00023125,3]
[386072300,1758211841005,-151.0,0.00023125,3]
[386072301,1758211841014,-480.0,0.00023125,3]
[386072302,1758211841023,-480.0,0.00023125,3]
[386072303,1758211841033,-480.0,0.00023125,3]
[386072304,1758211841042,-480.0,0.00023125,3]
[386072305,1758211841051,-480.0,0.00023125,3]
[386072306,1758211841060,-480.0,0.00023125,3]
[386072307,1758211841070,-480.0,0.00023125,3]
[386072308,1758211841079,-196.29060258,0.00023125,3]
[386072309,1758211841090,-480.0,0.00023125,3]
[386072310,1758211841099,-151.0,0.00023125,3]
[386072311,1758211841109,-151.0,0.00023125,3]
[386072312,1758211841118,-480.0,0.00023125,3]
[386072313,1758211841127,-151.0,0.00023125,3]
[386072314,1758211841136,-488.23117717,0.00023125,3]
[386072315,1758211841146,-151.0,0.00023125,3]
[386072316,1758211841155,-151.0,0.00023125,2]
[386072317,1758211841164,-151.0,0.00023125,3]
[386072318,1758211841174,-480.0,0.00023125,3]
[386072319,1758211841184,-480.0,0.00023125,3]
[386072320,1758211841193,-480.0,0.00023125,3]
[386072321,1758211841203,-480.0,0.00023125,3]
[386072322,1758211841212,-480.0,0.00023125,3]
[386072323,1758211841222,-486.75108861,0.00023125,3]
[386072324,1758211841231,-409.62586046,0.00023125,3]
[386072325,1758211841240,-151.0,0.00023125,3]
[386072326,1758211841250,-151.0,0.00023125,3]
[386072327,1758211841264,-480.0,0.00023125,3]
[386072328,1758211841273,-480.0,0.00023125,3]
[386072329,1758211841282,-487.96307943,0.00023125,3]
[386072330,1758211841292,-480.0,0.00023125,3]
[386072331,1758211841301,-497.17789689,0.00023125,3]
[386072332,1758211841311,-480.0,0.00023125,3]
[386072333,1758211841320,-480.0,0.00023125,3]
[386072334,1758211841330,-480.0,0.00023125,3]
[386072335,1758211841340,-421.57196462,0.00023125,3]
[386072336,1758211841351,-2381.6,0.00023125,3]
[386072337,1758211841360,-480.0,0.00023125,3]
[386072338,1758211841370,-480.0,0.00023125,3]
[386072339,1758211841379,-480.0,0.00023125,3]
[386072340,1758211841389,-480.0,0.00023125,3]
[386072341,1758211841399,-480.0,0.00023125,3]
[386072342,1758211841408,-500.0,0.00023126,3]
[386072343,1758211841418,-233.39271932,0.00023127,3]
[386072344,1758211841427,-480.0,0.00023172,5]
[386072345,1758211841439,-500.76366316,0.00023173,2]
[386072346,1758211841448,-500.0,0.00023173,2]
[386072347,1758211841458,-500.0,0.00023173,2]
[386072348,1758211841468,-500.0,0.00023173,2]
[386072349,1758211841477,-500.0,0.00023173,2]
[386072350,1758211841487,-501.01075172,0.00023173,2]
[386072351,1758211841496,-500.0,0.00023173,2]
[386072352,1758211841506,-500.0,0.00023173,2]
[386072353,1758211841515,-182.3758288,0.00023173,2]
[386072354,1758211841525,-500.0,0.00023173,2]
[386072355,1758211841534,-500.0,0.00023173,2]
[386072356,1758211841543,-500.0,0.00023173,2]
[386072357,1758211841553,-500.0,0.00023173,2]
[386072358,1758211841563,-500.0,0.00023173,2]
[386072359,1758211841572,-455.48,0.00023265,3]
[386072360,1758211841582,-600.0,0.00023307,20]
[386072361,1758211841592,-500.0,0.00023334,2]
[386072362,1758211841601,-378.36037636,0.00023334,2]
[386072363,1758211841611,-151.82,0.00023368,3]
[386072364,1758211841621,-303.64,0.00023378,3]
[386072365,1758211841630,-607.28,0.00023388,3]
[386072366,1758211841639,-480.0,0.00023398,3]
[386072367,1758211841648,-165.49792862,0.00023398,3]
[386072368,1758211841657,-480.0,0.00023398,3]
[386072369,1758211841667,-480.0,0.00023398,3]
[386072370,1758211841676,-480.0,0.00023398,3]
[386072371,1758211841685,-480.0,0.00023398,3]
[386072372,1758211841695,-480.0,0.00023398,3]
[386072373,1758211841707,-423.81815426,0.00023398,3]
[386072374,1758211841717,-480.0,0.00023398,3]
[386072375,1758211841729,-480.0,0.00023398,3]
[386072376,1758211841738,-480.0,0.00023398,3]
[386072377,1758211841748,-176.8161304,0.00023398,3]
[386072378,1758211841758,-165.07,0.00023398,3]
[386072379,1758211841767,-486.9612711,0.00023398,3]
[386072380,1758211841777,-480.0,0.00023398,3]
[386072381,1758211841786,-480.0,0.00023398,3]
[386072382,1758211841795,-480.0,0.00023398,3]
[386072383,1758211841804,-480.0,0.00023398,3]
[386072384,1758211841813,-480.0,0.00023398,3]
[386072385,1758211841823,-480.0,0.00023398,3]
[386072386,1758211841833,-264.95,0.00023398,3]
[386072387,1758211841842,-480.0,0.00023398,3]
[386072388,1758211841852,-480.0,0.00023398,3]
[386072389,1758211841861,-480.0,0.00023398,3]
[386072390,1758211841871,-480.0,0.00023398,3]
[386072391,1758211841882,-480.0,0.00023398,3]
[386072392,1758211841892,-480.0,0.00023398,3]
[386072393,1758211841901,-480.0,0.00023398,3]
[386072394,1758211841911,-480.0,0.00023398,3]
[386072395,1758211841921,-480.0,0.00023398,3]
[386072396,1758211841930,-480.0,0.00023398,3]
[386072397,1758211841940,-480.0,0.00023398,3]
[386072398,1758211841949,-480.0,0.00023398,3]
[386072399,1758211841961,-480.0,0.00023398,3]
[386072400,1758211841971,-510.32,0.00023398,3]
[386072401,1758211841980,-1178.12,0.00023398,3]
[386072402,1758211841989,-480.0,0.00023398,3]
[386072403,1758211841999,-480.0,0.00023398,3]
[386072404,1758211842008,-541.13,0.00023398,3]
[386072405,1758211842017,-480.0,0.00023398,3]
[386072406,1758211842026,-480.0,0.00023398,3]
[386072407,1758211842036,-480.0,0.00023398,3]
[386072408,1758211842046,-480.0,0.00023398,3]
[386072409,1758211842055,-480.0,0.00023398,3]
[386072410,1758211842068,-480.0,0.00023398,3]
[386072411,1758211842078,-480.0,0.00023398,3]
[386072412,1758211842089,-500.0,0.00023399,3]
[386072413,1758211842098,-500.0,0.00023399,3]
[386072414,1758211842107,-199.72528015,0.00023399,3]
[386072415,1758211842117,-412.00782234,0.00023399,3]
[386072416,1758211842127,-151.0,0.00023399,3]
[386072417,1758211842136,-200.04618021,0.00023399,3]
[386072418,1758211842145,-151.0,0.00023399,3]
[386072419,1758211842155,-151.0,0.00023399,3]
[386072420,1758211842164,-151.0,0.00023399,3]
[386072421,1758211842174,-151.0,0.00023399,3]
[386072422,1758211842183,-151.0,0.00023399,2]
[386072423,1758211842193,-289.12396109,0.00023399,3]
[386072424,1758211842203,-151.0,0.00023399,3]
[386072425,1758211842212,-151.0,0.00023399,3]
[386072426,1758211842222,-480.0,0.00023399,3]
[386072427,1758211842231,-480.0,0.00023399,3]
[386072428,1758211842241,-480.0,0.00023399,3]
[386072429,1758211842251,-480.0,0.00023399,3]
[386072430,1758211842260,-480.0,0.00023399,3]
[386072431,1758211842270,-480.0,0.00023399,3]
[386072432,1758211842279,-486.71103472,0.00023399,3]
[386072433,1758211842289,-435.66800324,0.00023399,3]
[386072434,1758211842299,-514.25,0.00023399,3]
[386072435,1758211842308,-475.94044616,0.00023399,3]
[386072436,1758211842317,-433.41909768,0.00023399,3]
[386072437,1758211842327,-297.46954165,0.00023399,3]
[386072438,1758211842339,-480.0,0.00023399,3]
[386072439,1758211842348,-480.0,0.00023399,3]
[386072440,1758211842358,-480.0,0.00023399,3]
[386072441,1758211842368,-480.0,0.00023399,3]
[386072442,1758211842377,-480.0,0.00023399,3]
[386072443,1758211842386,-2381.6,0.00023399,3]
[386072444,1758211842396,-480.0,0.00023399,3]
[386072445,1758211842405,-480.0,0.00023399,3]
[386072446,1758211842415,-480.0,0.00023399,3]
[386072447,1758211842425,-480.0,0.00023399,3]
[386072448,1758211842434,-500.0,0.000234,3]
[386072449,1758211842444,-500.0,0.00023406,2]
[386072450,1758211842453,-500.0,0.00023426,2]
[386072451,1758211842463,-500.0,0.00023426,2]
[386072452,1758211842472,-508.12528172,0.00023456,2]
[386072453,1758211842482,-1261.4003785,0.00023471,2]
[386072454,1758211842491,-480.0,0.00023635,2]
[386072455,1758211842501,-500.0,0.00023635,2]
[386072456,1758211842511,-504.42126826,0.00023635,2]
[386072457,1758211842520,-160.0,0.00023643,2]
[386072458,1758211842530,-160.0,0.00023643,2]
[386072459,1758211842539,-160.0,0.00023643,2]
[386072460,1758211842548,-160.0,0.00023647,2]
[386072461,1758211842558,-233.39271932,0.00023647,2]
[386072462,1758211842568,-847.96496735,0.00023647,2]
[386072463,1758211842578,-1040.18920928,0.00023647,2]
[386072464,1758211842589,-217.95274215,0.00023649,2]
[386072465,1758211842599,-480.0,0.00023672,3]
[386072466,1758211842609,-480.0,0.00023672,3]
[386072467,1758211842619,-481.16,0.00023672,3]
[386072468,1758211842629,-484.43848158,0.00023672,3]
[386072469,1758211842638,-480.0,0.00023672,3]
[386072470,1758211842648,-480.0,0.00023672,3]
[386072471,1758211842658,-226.53,0.00023672,3]
[386072472,1758211842667,-480.0,0.00023672,3]
[386072473,1758211842678,-480.0,0.00023672,3]
[386072474,1758211842688,-480.0,0.00023672,3]
[386072475,1758211842697,-480.0,0.00023672,3]
[386072476,1758211842707,-480.0,0.00023672,3]
[386072477,1758211842716,-480.0,0.00023672,3]
[386072478,1758211842726,-480.0,0.00023672,3]
[386072479,1758211842735,-484.91503361,0.00023672,3]
[386072480,1758211842745,-1178.12,0.00023672,3]
[386072481,1758211842754,-480.0,0.00023672,3]
[386072482,1758211842763,-480.0,0.00023672,3]
[386072483,1758211842773,-541.13,0.00023672,3]
[386072484,1758211842782,-480.0,0.00023672,3]
[386072485,1758211842792,-480.0,0.00023672,3]
[386072486,1758211842802,-480.0,0.00023672,3]
[386072488,1758211842811,-480.0,0.00023672,3]
[386072490,1758211842821,-500.0,0.00023673,3]
[386072492,1758211842831,-151.0,0.00023673,3]